[Event "Titled Tuesday Blitz January 03 Late 2023"]
[White "Pesotskiy, Mikhail"]
[Black "Hernandez Bonilla, Amelia"]
[WhiteFideId "34164453"]
[BlackFideId "3900193"]
[WhiteElo "2153"]
[BlackElo "1960"]
[Result "1-0"]
[Round "10"]
[TimeControl "180+2"]
[Date "2023.01.03"]
[WhiteClock "0:00:10"]
[BlackClock "0:00:08"]

1. d4 {[%clk 0:03:00]}  Nf6 {[%clk 0:02:59]} 2. c4 {[%clk 0:03:00]}  e6 {[%clk 0:03:00]} 3. Nc3 {[%clk 0:03:00]}  Bb4 {[%clk 0:02:59]} 4. Qb3 {[%clk 0:03:00]}  Bxc3+ {[%clk 0:02:56]} 5. Qxc3 {[%clk 0:03:01]}  Ne4 {[%clk 0:02:56]} 6. Qc2 {[%clk 0:03:00]}  f5 {[%clk 0:02:57]} 7. g3 {[%clk 0:02:58]}  b6 {[%clk 0:02:54]} 8. Bg2 {[%clk 0:02:55]}  Bb7 {[%clk 0:02:54]} 9. f3 {[%clk 0:02:55]}  Nf6 {[%clk 0:02:53]} 10. Nh3 {[%clk 0:02:55]}  d6 {[%clk 0:02:52]} 11. O-O {[%clk 0:02:55]}  Nbd7 {[%clk 0:02:51]} 12. e4 {[%clk 0:02:55]}  fxe4 {[%clk 0:02:48]} 13. fxe4 {[%clk 0:02:56]}  O-O {[%clk 0:02:47]} 14. Ng5 {[%clk 0:02:47]}  Qe7 {[%clk 0:02:43]} 15. Bh3 {[%clk 0:02:48]}  h6 {[%clk 0:02:34]} 16. Nxe6 {[%clk 0:02:45]}  Bxe4 {[%clk 0:02:31]} 17. Qe2 {[%clk 0:02:20]}  Rfc8 {[%clk 0:02:21]} 18. Rf4 {[%clk 0:01:56]}  Bg6 {[%clk 0:02:08]} 19. Rh4 {[%clk 0:01:53]}  Nf8 {[%clk 0:01:55]} 20. Bxh6 {[%clk 0:01:51]}  gxh6 {[%clk 0:01:50]} 21. Rxh6 {[%clk 0:01:51]}  Bh7 {[%clk 0:01:46]} 22. Rf1 {[%clk 0:01:49]}  N8d7 {[%clk 0:01:27]} 23. g4 {[%clk 0:00:46]}  Ne4 {[%clk 0:01:12]} 24. g5 {[%clk 0:00:42]}  Nf8 {[%clk 0:01:03]} 25. g6 {[%clk 0:00:32]}  Nxg6 {[%clk 0:00:48]} 26. Qxe4 {[%clk 0:00:28]}  Re8 {[%clk 0:00:39]} 27. Kh1 {[%clk 0:00:27]}  Nf8 {[%clk 0:00:28]} 28. Rg1+ {[%clk 0:00:15]}  Kh8 {[%clk 0:00:27]} 29. d5 {[%clk 0:00:14]}  Nxe6 {[%clk 0:00:22]} 30. Bxe6 {[%clk 0:00:15]}  Rf8 {[%clk 0:00:20]} 31. Qd4+ {[%clk 0:00:15]}  Rf6 {[%clk 0:00:14]} 32. Rxf6 {[%clk 0:00:15]}  Be4+ {[%clk 0:00:13]} 33. Rg2 {[%clk 0:00:08]}  Bxg2+ {[%clk 0:00:13]} 34. Kxg2 {[%clk 0:00:09]}  Qg7+ {[%clk 0:00:12]} 35. Kh1 {[%clk 0:00:10]}  Re8 {[%clk 0:00:08]} 36. Rh6# {[%clk 0:00:10]} 1-0


[Site "https://www.chess.com"]

[Event "Titled Tuesday Blitz January 03 Late 2023"]
[White "Fernandez Hernandez, Gerardo"]
[Black "Forgacs, Attila Jr."]
[WhiteFideId "2207400"]
[BlackFideId "773654"]
[WhiteElo "2181"]
[BlackElo "2264"]
[Result "0-1"]
[Round "10"]
[TimeControl "180+2"]
[Date "2023.01.03"]
[WhiteClock "0:00:02"]
[BlackClock "0:00:45"]

1. e4 {[%clk 0:02:57]}  e5 {[%clk 0:03:00]} 2. Nf3 {[%clk 0:02:57]}  Nc6 {[%clk 0:03:00]} 3. Bc4 {[%clk 0:02:56]}  Nf6 {[%clk 0:03:00]} 4. Ng5 {[%clk 0:02:57]}  d5 {[%clk 0:03:00]} 5. exd5 {[%clk 0:02:57]}  Na5 {[%clk 0:03:01]} 6. Bb5+ {[%clk 0:02:58]}  c6 {[%clk 0:03:02]} 7. dxc6 {[%clk 0:02:58]}  bxc6 {[%clk 0:03:03]} 8. Qf3 {[%clk 0:02:58]}  Be7 {[%clk 0:03:02]} 9. Ba4 {[%clk 0:02:49]}  O-O {[%clk 0:02:59]} 10. Ne4 {[%clk 0:02:39]}  Nd5 {[%clk 0:02:57]} 11. d3 {[%clk 0:02:23]}  f5 {[%clk 0:02:57]} 12. Ng3 {[%clk 0:02:22]}  e4 {[%clk 0:02:39]} 13. dxe4 {[%clk 0:01:57]}  fxe4 {[%clk 0:02:40]} 14. Qxe4 {[%clk 0:01:56]}  Bb4+ {[%clk 0:02:40]} 15. c3 {[%clk 0:01:56]}  Re8 {[%clk 0:02:40]} 16. cxb4 {[%clk 0:01:56]}  Rxe4+ {[%clk 0:02:40]} 17. Nxe4 {[%clk 0:01:56]}  Qe7 {[%clk 0:02:37]} 18. O-O {[%clk 0:01:42]}  Qxe4 {[%clk 0:02:32]} 19. Rd1 {[%clk 0:01:16]}  Qxb4 {[%clk 0:02:30]} 20. b3 {[%clk 0:01:10]}  Bf5 {[%clk 0:02:14]} 21. Bd2 {[%clk 0:00:51]}  Qg4 {[%clk 0:02:10]} 22. Nc3 {[%clk 0:00:25]}  Nxc3 {[%clk 0:02:06]} 23. Bxc3 {[%clk 0:00:26]}  Be4 {[%clk 0:02:01]} 24. f3 {[%clk 0:00:15]}  Bxf3 {[%clk 0:02:01]} 25. Rd2 {[%clk 0:00:16]}  Nb7 {[%clk 0:01:54]} 26. h3 {[%clk 0:00:13]}  Qg3 {[%clk 0:01:46]} 27. Rf1 {[%clk 0:00:10]}  Bd5 {[%clk 0:01:41]} 28. Bb4 {[%clk 0:00:08]}  a5 {[%clk 0:01:35]} 29. Ba3 {[%clk 0:00:08]}  Qe3+ {[%clk 0:01:33]} 30. Rff2 {[%clk 0:00:07]}  h5 {[%clk 0:01:15]} 31. Kh2 {[%clk 0:00:05]}  h4 {[%clk 0:01:10]} 32. Bc1 {[%clk 0:00:04]}  Qg3+ {[%clk 0:01:08]} 33. Kg1 {[%clk 0:00:04]}  Re8 {[%clk 0:01:05]} 34. Rd1 {[%clk 0:00:02]}  Rf8 {[%clk 0:00:49]} 35. Re2 {[%clk 0:00:02]}  Nd6 {[%clk 0:00:45]} 0-1


[Site "https://www.chess.com"]

[Event "Titled Tuesday Blitz January 03 Late 2023"]
[White "Tamarozi, Isabelle"]
[Black "Almagro Mazariegos, Sebastian"]
[WhiteFideId "2132400"]
[BlackFideId "2221640"]
[WhiteElo "1982"]
[BlackElo "2280"]
[Result "0-1"]
[Round "10"]
[TimeControl "180+2"]
[Date "2023.01.03"]
[WhiteClock "0:00:21"]
[BlackClock "0:01:59"]

1. e4 {[%clk 0:02:53]}  c5 {[%clk 0:02:58]} 2. Nf3 {[%clk 0:02:52]}  d6 {[%clk 0:02:56]} 3. d4 {[%clk 0:02:52]}  cxd4 {[%clk 0:02:57]} 4. Nxd4 {[%clk 0:02:52]}  Nf6 {[%clk 0:02:57]} 5. Nc3 {[%clk 0:02:53]}  a6 {[%clk 0:02:57]} 6. Be2 {[%clk 0:02:52]}  e5 {[%clk 0:02:55]} 7. Nb3 {[%clk 0:02:52]}  Be6 {[%clk 0:02:55]} 8. f4 {[%clk 0:02:50]}  Qc7 {[%clk 0:02:54]} 9. f5 {[%clk 0:02:48]}  Bc4 {[%clk 0:02:53]} 10. g4 {[%clk 0:02:48]}  h6 {[%clk 0:02:52]} 11. g5 {[%clk 0:02:42]}  hxg5 {[%clk 0:02:52]} 12. Bxg5 {[%clk 0:02:42]}  Nbd7 {[%clk 0:02:52]} 13. Qd2 {[%clk 0:02:28]}  b5 {[%clk 0:02:51]} 14. O-O-O {[%clk 0:02:26]}  Rc8 {[%clk 0:02:50]} 15. Kb1 {[%clk 0:02:23]}  b4 {[%clk 0:02:49]} 16. Bxc4 {[%clk 0:02:10]}  bxc3 {[%clk 0:02:41]} 17. Bxf7+ {[%clk 0:01:18]}  Kxf7 {[%clk 0:02:39]} 18. Qg2 {[%clk 0:01:18]}  cxb2 {[%clk 0:02:36]} 19. Rd2 {[%clk 0:01:04]}  a5 {[%clk 0:02:32]} 20. a4 {[%clk 0:00:59]}  Qc4 {[%clk 0:02:28]} 21. Bxf6 {[%clk 0:00:57]}  Nxf6 {[%clk 0:02:28]} 22. Qg6+ {[%clk 0:00:56]}  Kg8 {[%clk 0:02:28]} 23. Rg1 {[%clk 0:00:53]}  Qf7 {[%clk 0:02:18]} 24. Qg3 {[%clk 0:00:38]}  Nxe4 {[%clk 0:02:15]} 25. Qd3 {[%clk 0:00:26]}  Nxd2+ {[%clk 0:02:13]} 26. Qxd2 {[%clk 0:00:27]}  Qxf5 {[%clk 0:02:06]} 27. Qd5+ {[%clk 0:00:25]}  Qf7 {[%clk 0:02:04]} 28. Qxa5 {[%clk 0:00:23]}  Rxh2 {[%clk 0:02:02]} 29. Qa6 {[%clk 0:00:21]}  Rcxc2 {[%clk 0:01:59]} 0-1


[Site "https://www.chess.com"]

[Event "Titled Tuesday Blitz January 03 Late 2023"]
[White "Curtis, John"]
[Black "Liu, Casper"]
[WhiteFideId "3200256"]
[BlackFideId "1454153"]
[WhiteElo "2292"]
[BlackElo "2278"]
[Result "0-1"]
[Round "10"]
[TimeControl "180+2"]
[Date "2023.01.03"]
[WhiteClock "0:00:12"]
[BlackClock "0:00:05"]

1. e4 {[%clk 0:03:00]}  g5 {[%clk 0:02:50]} 2. Nf3 {[%clk 0:03:01]}  g4 {[%clk 0:02:49]} 3. Nd4 {[%clk 0:03:00]}  Nc6 {[%clk 0:02:42]} 4. Nb3 {[%clk 0:02:57]}  Nf6 {[%clk 0:02:36]} 5. Nc3 {[%clk 0:02:51]}  d5 {[%clk 0:02:29]} 6. exd5 {[%clk 0:02:44]}  Nxd5 {[%clk 0:02:27]} 7. Nxd5 {[%clk 0:02:39]}  Qxd5 {[%clk 0:02:27]} 8. c4 {[%clk 0:02:23]}  Qe5+ {[%clk 0:02:15]} 9. Qe2 {[%clk 0:02:23]}  Qh5 {[%clk 0:02:15]} 10. d4 {[%clk 0:02:14]}  Bg7 {[%clk 0:02:12]} 11. Be3 {[%clk 0:02:09]}  Bf5 {[%clk 0:02:12]} 12. f3 {[%clk 0:01:58]}  Nb4 {[%clk 0:02:00]} 13. Rd1 {[%clk 0:01:39]}  Nc2+ {[%clk 0:01:45]} 14. Kf2 {[%clk 0:01:31]}  gxf3 {[%clk 0:01:25]} 15. Qxf3 {[%clk 0:01:25]}  Bg4 {[%clk 0:01:25]} 16. Qxb7 {[%clk 0:01:25]}  O-O {[%clk 0:01:23]} 17. Rd3 {[%clk 0:01:13]}  Qf5+ {[%clk 0:01:00]} 18. Kg1 {[%clk 0:01:07]}  Rab8 {[%clk 0:00:59]} 19. Qxc7 {[%clk 0:00:58]}  Rxb3 {[%clk 0:00:41]} 20. axb3 {[%clk 0:00:50]}  Nxe3 {[%clk 0:00:41]} 21. Rxe3 {[%clk 0:00:50]}  Bxd4 {[%clk 0:00:41]} 22. Qg3 {[%clk 0:00:46]}  Kh8 {[%clk 0:00:18]} 23. h3 {[%clk 0:00:37]}  Bh5 {[%clk 0:00:18]} 24. Kh2 {[%clk 0:00:23]}  Rg8 {[%clk 0:00:15]} 25. Rf3 {[%clk 0:00:23]}  Qc5 {[%clk 0:00:08]} 26. Qxg8+ {[%clk 0:00:15]}  Kxg8 {[%clk 0:00:07]} 27. Rg3+ {[%clk 0:00:16]}  Kh8 {[%clk 0:00:06]} 28. Bd3 {[%clk 0:00:17]}  Be5 {[%clk 0:00:06]} 29. Rf1 {[%clk 0:00:17]}  Qe3 {[%clk 0:00:06]} 30. Rf3 {[%clk 0:00:16]}  Bxf3 {[%clk 0:00:06]} 31. Bf5 {[%clk 0:00:13]}  Qf2 {[%clk 0:00:06]} 32. Kh1 {[%clk 0:00:12]}  Bxg3 {[%clk 0:00:05]} 33. gxf3 {[%clk 0:00:12]}  Qf1# {[%clk 0:00:05]} 0-1


[Site "https://www.chess.com"]

[Event "Titled Tuesday Blitz January 03 Late 2023"]
[White "Mazurkiewicz, Michal"]
[Black "Sloan, Julia Elizabeth"]
[WhiteFideId "1124943"]
[BlackFideId "2018950"]
[WhiteElo "2145"]
[BlackElo "2087"]
[Result "1-0"]
[Round "10"]
[TimeControl "180+2"]
[Date "2023.01.03"]
[WhiteClock "0:02:02"]
[BlackClock "0:02:13"]

1. e4 {[%clk 0:03:00]}  c5 {[%clk 0:02:59]} 2. Nf3 {[%clk 0:03:00]}  d6 {[%clk 0:02:58]} 3. g3 {[%clk 0:03:00]}  c4 {[%clk 0:02:59]} 4. Bxc4 {[%clk 0:02:56]}  a6 {[%clk 0:02:59]} 5. O-O {[%clk 0:02:53]}  e6 {[%clk 0:02:57]} 6. Re1 {[%clk 0:02:53]}  b5 {[%clk 0:02:57]} 7. Bf1 {[%clk 0:02:52]}  Bb7 {[%clk 0:02:56]} 8. d4 {[%clk 0:02:53]}  d5 {[%clk 0:02:54]} 9. e5 {[%clk 0:02:53]}  Nc6 {[%clk 0:02:51]} 10. c3 {[%clk 0:02:52]}  h5 {[%clk 0:02:49]} 11. h4 {[%clk 0:02:52]}  Nh6 {[%clk 0:02:48]} 12. a3 {[%clk 0:02:49]}  Nf5 {[%clk 0:02:47]} 13. Bh3 {[%clk 0:02:49]}  g6 {[%clk 0:02:46]} 14. Bg5 {[%clk 0:02:47]}  Qb6 {[%clk 0:02:44]} 15. Bf6 {[%clk 0:02:46]}  Bg7 {[%clk 0:02:42]} 16. Bxf5 {[%clk 0:02:43]}  Bxf6 {[%clk 0:02:42]} 17. Bxe6 {[%clk 0:02:43]}  fxe6 {[%clk 0:02:41]} 18. exf6 {[%clk 0:02:44]}  O-O {[%clk 0:02:37]} 19. Rxe6 {[%clk 0:02:37]}  Bc8 {[%clk 0:02:36]} 20. f7+ {[%clk 0:02:13]}  Rxf7 {[%clk 0:02:33]} 21. Rxg6+ {[%clk 0:02:11]}  Kh7 {[%clk 0:02:30]} 22. Rxc6 {[%clk 0:02:11]}  Qxc6 {[%clk 0:02:29]} 23. Ng5+ {[%clk 0:02:11]}  Kg6 {[%clk 0:02:27]} 24. Nxf7 {[%clk 0:02:09]}  Kxf7 {[%clk 0:02:27]} 25. Qxh5+ {[%clk 0:02:09]}  Kg7 {[%clk 0:02:26]} 26. Nd2 {[%clk 0:02:06]}  Bb7 {[%clk 0:02:23]} 27. Nf3 {[%clk 0:02:05]}  Qf6 {[%clk 0:02:17]} 28. Ng5 {[%clk 0:02:01]}  Qg6 {[%clk 0:02:13]} 29. Qxg6+ {[%clk 0:02:01]}  Kxg6 {[%clk 0:02:13]} 30. Re1 {[%clk 0:02:02]} 1-0


[Site "https://www.chess.com"]

[Event "Titled Tuesday Blitz January 03 Late 2023"]
[White "Guevara Sanchez, Erick Marvin"]
[Black "Schill, William"]
[WhiteFideId "6700136"]
[BlackFideId "2016710"]
[WhiteElo "2073"]
[BlackElo "2147"]
[Result "0-1"]
[Round "10"]
[TimeControl "180+2"]
[Date "2023.01.03"]
[WhiteClock "0:00:06"]
[BlackClock "0:00:43"]

1. e4 {[%clk 0:03:00]}  c5 {[%clk 0:02:59]} 2. d4 {[%clk 0:03:00]}  cxd4 {[%clk 0:02:58]} 3. c3 {[%clk 0:03:01]}  dxc3 {[%clk 0:02:58]} 4. Nxc3 {[%clk 0:03:01]}  d6 {[%clk 0:02:58]} 5. Bc4 {[%clk 0:03:01]}  e6 {[%clk 0:02:57]} 6. Nf3 {[%clk 0:03:01]}  Be7 {[%clk 0:02:56]} 7. O-O {[%clk 0:03:01]}  Nf6 {[%clk 0:02:56]} 8. Qe2 {[%clk 0:03:00]}  a6 {[%clk 0:02:56]} 9. Rd1 {[%clk 0:02:58]}  b5 {[%clk 0:02:56]} 10. Bb3 {[%clk 0:02:57]}  Nbd7 {[%clk 0:02:56]} 11. e5 {[%clk 0:02:53]}  dxe5 {[%clk 0:02:56]} 12. Nxe5 {[%clk 0:02:53]}  Qb6 {[%clk 0:02:56]} 13. Be3 {[%clk 0:02:41]}  Qb7 {[%clk 0:02:55]} 14. Bf4 {[%clk 0:02:13]}  Nxe5 {[%clk 0:02:40]} 15. Bxe5 {[%clk 0:02:14]}  Bd7 {[%clk 0:02:32]} 16. Bxf6 {[%clk 0:01:24]}  Bxf6 {[%clk 0:02:31]} 17. Nd5 {[%clk 0:01:22]}  Bd8 {[%clk 0:02:24]} 18. Rd3 {[%clk 0:00:49]}  O-O {[%clk 0:02:17]} 19. Nf4 {[%clk 0:00:45]}  Bc6 {[%clk 0:01:57]} 20. Rh3 {[%clk 0:00:35]}  Bg5 {[%clk 0:01:30]} 21. Qh5 {[%clk 0:00:23]}  h6 {[%clk 0:01:30]} 22. Qg4 {[%clk 0:00:17]}  Bxf4 {[%clk 0:01:23]} 23. Qxf4 {[%clk 0:00:18]}  Bd5 {[%clk 0:01:20]} 24. Bc2 {[%clk 0:00:16]}  Rac8 {[%clk 0:01:05]} 25. Rg3 {[%clk 0:00:15]}  Rxc2 {[%clk 0:01:00]} 26. Qg4 {[%clk 0:00:13]}  f5 {[%clk 0:00:58]} 27. Qg6 {[%clk 0:00:08]}  Rfc8 {[%clk 0:00:52]} 28. Qxh6 {[%clk 0:00:07]}  Qc7 {[%clk 0:00:48]} 29. h3 {[%clk 0:00:06]}  Qxg3 {[%clk 0:00:45]} 30. fxg3 {[%clk 0:00:06]}  gxh6 {[%clk 0:00:45]} 31. Rd1 {[%clk 0:00:04]}  Rc1 {[%clk 0:00:44]} 32. Rxc1 {[%clk 0:00:05]}  Rxc1+ {[%clk 0:00:44]} 33. Kf2 {[%clk 0:00:05]}  Rc2+ {[%clk 0:00:44]} 34. Ke3 {[%clk 0:00:05]}  Rxb2 {[%clk 0:00:44]} 35. Kf4 {[%clk 0:00:06]}  Rxa2 {[%clk 0:00:43]} 0-1


[Site "https://www.chess.com"]

[Event "Titled Tuesday Blitz January 03 Late 2023"]
[White "Saim, Mohamed Ilias"]
[Black "Sailer, Mike"]
[WhiteFideId "7900465"]
[BlackFideId "2012901"]
[WhiteElo "2169"]
[BlackElo "2109"]
[Result "0-1"]
[Round "10"]
[TimeControl "180+2"]
[Date "2023.01.03"]
[WhiteClock "0:01:28"]
[BlackClock "0:01:52"]

1. d4 {[%clk 0:02:59]}  d5 {[%clk 0:02:59]} 2. Nf3 {[%clk 0:02:58]}  Bf5 {[%clk 0:03:00]} 3. c4 {[%clk 0:02:57]}  e6 {[%clk 0:03:00]} 4. Nc3 {[%clk 0:02:57]}  Nc6 {[%clk 0:03:01]} 5. cxd5 {[%clk 0:02:52]}  exd5 {[%clk 0:03:01]} 6. e3 {[%clk 0:02:52]}  Nb4 {[%clk 0:03:01]} 7. Qa4+ {[%clk 0:02:40]}  c6 {[%clk 0:03:00]} 8. e4 {[%clk 0:02:28]}  dxe4 {[%clk 0:02:57]} 9. Ne5 {[%clk 0:02:19]}  e3 {[%clk 0:02:41]} 10. Bc4 {[%clk 0:02:02]}  exf2+ {[%clk 0:02:23]} 11. Kxf2 {[%clk 0:01:56]}  Qxd4+ {[%clk 0:02:23]} 12. Be3 {[%clk 0:01:49]}  Qxe5 {[%clk 0:02:23]} 13. Rhe1 {[%clk 0:01:40]}  Be7 {[%clk 0:02:03]} 14. Bxa7 {[%clk 0:01:29]}  Qf4+ {[%clk 0:01:54]} 15. Kg1 {[%clk 0:01:28]}  Qxc4 {[%clk 0:01:52]} 0-1


[Site "https://www.chess.com"]

[Event "Titled Tuesday Blitz January 03 Late 2023"]
[White "Kollars, Dmitrij"]
[Black "Lenderman, Aleksandr"]
[WhiteFideId "12909572"]
[BlackFideId "2021285"]
[WhiteElo "2607"]
[BlackElo "2572"]
[Result "1-0"]
[Round "11"]
[TimeControl "180+2"]
[Date "2023.01.03"]
[WhiteClock "0:00:07"]
[BlackClock "0:00:04"]

1. e4 {[%clk 0:03:00]}  e6 {[%clk 0:03:00]} 2. d4 {[%clk 0:02:59]}  d5 {[%clk 0:03:01]} 3. Nd2 {[%clk 0:02:58]}  dxe4 {[%clk 0:02:59]} 4. Nxe4 {[%clk 0:02:58]}  Nd7 {[%clk 0:03:00]} 5. Nf3 {[%clk 0:02:55]}  Ngf6 {[%clk 0:03:00]} 6. Nxf6+ {[%clk 0:02:51]}  Nxf6 {[%clk 0:03:00]} 7. c3 {[%clk 0:02:52]}  Be7 {[%clk 0:02:58]} 8. Bd3 {[%clk 0:02:50]}  O-O {[%clk 0:02:57]} 9. O-O {[%clk 0:02:49]}  b6 {[%clk 0:02:53]} 10. a4 {[%clk 0:02:36]}  a5 {[%clk 0:02:51]} 11. Qe2 {[%clk 0:02:31]}  Bb7 {[%clk 0:02:51]} 12. Bf4 {[%clk 0:02:29]}  Bd6 {[%clk 0:02:43]} 13. Bg5 {[%clk 0:02:28]}  h6 {[%clk 0:02:42]} 14. Bh4 {[%clk 0:02:28]}  c5 {[%clk 0:02:39]} 15. dxc5 {[%clk 0:02:10]}  bxc5 {[%clk 0:02:39]} 16. Rad1 {[%clk 0:02:08]}  Qc7 {[%clk 0:02:13]} 17. Bxf6 {[%clk 0:02:04]}  gxf6 {[%clk 0:02:14]} 18. Be4 {[%clk 0:02:04]}  Rfd8 {[%clk 0:02:11]} 19. Bxb7 {[%clk 0:01:45]}  Qxb7 {[%clk 0:02:11]} 20. Nd2 {[%clk 0:01:46]}  Be7 {[%clk 0:02:05]} 21. Nc4 {[%clk 0:01:20]}  Qa6 {[%clk 0:02:05]} 22. g3 {[%clk 0:01:16]}  f5 {[%clk 0:02:01]} 23. Rfe1 {[%clk 0:01:13]}  Bf6 {[%clk 0:01:56]} 24. Rd2 {[%clk 0:00:54]}  Rxd2 {[%clk 0:01:52]} 25. Nxd2 {[%clk 0:00:55]}  Qc6 {[%clk 0:01:39]} 26. Qc4 {[%clk 0:00:37]}  Rb8 {[%clk 0:01:21]} 27. b3 {[%clk 0:00:31]}  Qd5 {[%clk 0:01:15]} 28. Qxd5 {[%clk 0:00:24]}  exd5 {[%clk 0:01:16]} 29. Rc1 {[%clk 0:00:24]}  Re8 {[%clk 0:00:50]} 30. Kf1 {[%clk 0:00:24]}  Bg5 {[%clk 0:00:50]} 31. f4 {[%clk 0:00:20]}  Bf6 {[%clk 0:00:51]} 32. c4 {[%clk 0:00:21]}  d4 {[%clk 0:00:34]} 33. Re1 {[%clk 0:00:21]}  Rb8 {[%clk 0:00:34]} 34. Ke2 {[%clk 0:00:20]}  Re8+ {[%clk 0:00:25]} 35. Kd1 {[%clk 0:00:20]}  Rd8 {[%clk 0:00:26]} 36. Kc2 {[%clk 0:00:19]}  d3+ {[%clk 0:00:26]} 37. Kd1 {[%clk 0:00:18]}  Kf8 {[%clk 0:00:22]} 38. Re3 {[%clk 0:00:18]}  Bc3 {[%clk 0:00:22]} 39. Nf3 {[%clk 0:00:18]}  Kg7 {[%clk 0:00:15]} 40. Ne1 {[%clk 0:00:10]}  Bxe1 {[%clk 0:00:14]} 41. Kxe1 {[%clk 0:00:11]}  d2+ {[%clk 0:00:12]} 42. Kd1 {[%clk 0:00:12]}  Kf6 {[%clk 0:00:12]} 43. Re5 {[%clk 0:00:11]}  Rd3 {[%clk 0:00:12]} 44. Rxc5 {[%clk 0:00:11]}  Rxb3 {[%clk 0:00:13]} 45. Rxa5 {[%clk 0:00:10]}  Rb2 {[%clk 0:00:11]} 46. Rd5 {[%clk 0:00:09]}  Ra2 {[%clk 0:00:11]} 47. a5 {[%clk 0:00:09]}  Ra4 {[%clk 0:00:11]} 48. Kxd2 {[%clk 0:00:08]}  Rxc4 {[%clk 0:00:12]} 49. Rb5 {[%clk 0:00:06]}  Ke6 {[%clk 0:00:09]} 50. Kd3 {[%clk 0:00:06]}  Ra4 {[%clk 0:00:09]} 51. Kc3 {[%clk 0:00:07]}  Kd6 {[%clk 0:00:09]} 52. Rxf5 {[%clk 0:00:06]}  Ra2 {[%clk 0:00:08]} 53. Rh5 {[%clk 0:00:06]}  Ke7 {[%clk 0:00:06]} 54. Kb4 {[%clk 0:00:06]}  Ra1 {[%clk 0:00:06]} 55. Rxh6 {[%clk 0:00:06]}  Rb1+ {[%clk 0:00:05]} 56. Kc5 {[%clk 0:00:07]}  Rc1+ {[%clk 0:00:05]} 57. Kb6 {[%clk 0:00:07]}  Rb1+ {[%clk 0:00:06]} 58. Kc7 {[%clk 0:00:06]}  Rb2 {[%clk 0:00:04]} 59. a6 {[%clk 0:00:06]}  Rc2+ {[%clk 0:00:05]} 60. Kb7 {[%clk 0:00:06]}  Rb2+ {[%clk 0:00:04]} 61. Rb6 {[%clk 0:00:07]}  Rxh2 {[%clk 0:00:04]} 62. a7 {[%clk 0:00:07]} 1-0


[Site "https://www.chess.com"]

[Event "Titled Tuesday Blitz January 03 Late 2023"]
[White "Bluebaum, Matthias"]
[Black "Tang, Andrew"]
[WhiteFideId "24651516"]
[BlackFideId "2059630"]
[WhiteElo "2669"]
[BlackElo "2523"]
[Result "1-0"]
[Round "11"]
[TimeControl "180+2"]
[Date "2023.01.03"]
[WhiteClock "0:00:05"]
[BlackClock "0:00:03"]

1. d4 {[%clk 0:03:00]}  d5 {[%clk 0:02:59]} 2. c4 {[%clk 0:03:01]}  e6 {[%clk 0:03:00]} 3. Nc3 {[%clk 0:03:00]}  Be7 {[%clk 0:03:00]} 4. cxd5 {[%clk 0:02:57]}  exd5 {[%clk 0:03:01]} 5. Bf4 {[%clk 0:02:58]}  c6 {[%clk 0:03:02]} 6. e3 {[%clk 0:02:55]}  Bf5 {[%clk 0:03:02]} 7. Nge2 {[%clk 0:02:53]}  Nd7 {[%clk 0:03:02]} 8. f3 {[%clk 0:02:30]}  g5 {[%clk 0:02:41]} 9. Bg3 {[%clk 0:02:31]}  h5 {[%clk 0:02:41]} 10. e4 {[%clk 0:02:24]}  dxe4 {[%clk 0:02:41]} 11. fxe4 {[%clk 0:02:25]}  Bg6 {[%clk 0:02:40]} 12. Bf2 {[%clk 0:01:58]}  h4 {[%clk 0:02:12]} 13. Nc1 {[%clk 0:01:52]}  h3 {[%clk 0:01:22]} 14. gxh3 {[%clk 0:01:43]}  Ngf6 {[%clk 0:01:12]} 15. Bg2 {[%clk 0:01:43]}  Bb4 {[%clk 0:01:12]} 16. O-O {[%clk 0:01:40]}  Bxc3 {[%clk 0:01:05]} 17. bxc3 {[%clk 0:01:41]}  Nxe4 {[%clk 0:01:03]} 18. Re1 {[%clk 0:00:41]}  Qe7 {[%clk 0:00:50]} 19. Nb3 {[%clk 0:00:16]}  f5 {[%clk 0:00:25]} 20. Na5 {[%clk 0:00:13]}  Nb6 {[%clk 0:00:25]} 21. Qb3 {[%clk 0:00:10]}  Bf7 {[%clk 0:00:22]} 22. Qc2 {[%clk 0:00:10]}  Bg6 {[%clk 0:00:20]} 23. Qb3 {[%clk 0:00:11]}  O-O-O {[%clk 0:00:12]} 24. Nc4 {[%clk 0:00:03]}  Nxc4 {[%clk 0:00:09]} 25. Qxc4 {[%clk 0:00:04]}  Qd6 {[%clk 0:00:07]} 26. Rab1 {[%clk 0:00:04]}  Rd7 {[%clk 0:00:04]} 27. Bxe4 {[%clk 0:00:04]}  fxe4 {[%clk 0:00:04]} 28. Bg3 {[%clk 0:00:05]}  Qd5 {[%clk 0:00:02]} 29. Qa4 {[%clk 0:00:05]}  b6 {[%clk 0:00:01]} 30. Rxb6 {[%clk 0:00:05]}  Kd8 {[%clk 0:00:02]} 31. Rb8+ {[%clk 0:00:05]}  Ke7 {[%clk 0:00:02]} 32. Qb4+ {[%clk 0:00:05]}  Kf7 {[%clk 0:00:02]} 33. Rxh8 {[%clk 0:00:05]}  Kg7 {[%clk 0:00:03]} 34. Qf8# {[%clk 0:00:05]} 1-0


[Site "https://www.chess.com"]

[Event "Titled Tuesday Blitz January 03 Late 2023"]
[White "Martinez Alcantara, Jose Eduardo"]
[Black "Keymer, Vincent"]
[WhiteFideId "3805662"]
[BlackFideId "12940690"]
[WhiteElo "2619"]
[BlackElo "2700"]
[Result "1-0"]
[Round "11"]
[TimeControl "180+2"]
[Date "2023.01.03"]
[WhiteClock "0:00:05"]
[BlackClock "0:00:01"]

1. e4 {[%clk 0:03:00]}  c6 {[%clk 0:02:59]} 2. d4 {[%clk 0:03:01]}  d5 {[%clk 0:03:00]} 3. e5 {[%clk 0:03:02]}  Bf5 {[%clk 0:03:00]} 4. h4 {[%clk 0:03:02]}  h6 {[%clk 0:03:00]} 5. Bd3 {[%clk 0:03:03]}  Bxd3 {[%clk 0:03:00]} 6. Qxd3 {[%clk 0:03:04]}  e6 {[%clk 0:03:01]} 7. Be3 {[%clk 0:03:04]}  Qa5+ {[%clk 0:03:01]} 8. Nd2 {[%clk 0:03:03]}  Ne7 {[%clk 0:02:58]} 9. h5 {[%clk 0:03:02]}  c5 {[%clk 0:02:51]} 10. c3 {[%clk 0:02:55]}  Nbc6 {[%clk 0:02:47]} 11. Ngf3 {[%clk 0:02:54]}  Nf5 {[%clk 0:02:38]} 12. g4 {[%clk 0:02:42]}  cxd4 {[%clk 0:02:18]} 13. gxf5 {[%clk 0:02:37]}  dxe3 {[%clk 0:02:19]} 14. fxe3 {[%clk 0:02:37]}  O-O-O {[%clk 0:02:00]} 15. fxe6 {[%clk 0:02:28]}  fxe6 {[%clk 0:02:01]} 16. Qg6 {[%clk 0:02:27]}  Kb8 {[%clk 0:01:47]} 17. Qxe6 {[%clk 0:02:20]}  Qb6 {[%clk 0:01:31]} 18. O-O-O {[%clk 0:02:06]}  Bc5 {[%clk 0:01:29]} 19. Kb1 {[%clk 0:01:52]}  Bxe3 {[%clk 0:01:24]} 20. Nb3 {[%clk 0:01:37]}  Rhf8 {[%clk 0:01:19]} 21. Rhf1 {[%clk 0:01:19]}  Qb5 {[%clk 0:01:09]} 22. Qg4 {[%clk 0:01:18]}  Rf4 {[%clk 0:00:43]} 23. Qg2 {[%clk 0:00:40]}  Rdf8 {[%clk 0:00:36]} 24. e6 {[%clk 0:00:41]}  Qc4 {[%clk 0:00:29]} 25. Nh2 {[%clk 0:00:19]}  Rxf1 {[%clk 0:00:11]} 26. Nxf1 {[%clk 0:00:19]}  Bg5 {[%clk 0:00:07]} 27. Nfd2 {[%clk 0:00:09]}  Qd3+ {[%clk 0:00:05]} 28. Ka1 {[%clk 0:00:09]}  Re8 {[%clk 0:00:04]} 29. Re1 {[%clk 0:00:09]}  d4 {[%clk 0:00:03]} 30. Ne4 {[%clk 0:00:08]}  dxc3 {[%clk 0:00:03]} 31. Nxc3 {[%clk 0:00:04]}  Nb4 {[%clk 0:00:03]} 32. Rd1 {[%clk 0:00:04]}  Nc2+ {[%clk 0:00:01]} 33. Kb1 {[%clk 0:00:05]} 1-0


[Site "https://www.chess.com"]